fUST/lending_fUST_20260330
["ID","MTS","AMOUNT","RATE_DAILY","PERIOD"]
[419050882,1774812640832,-173037.05652105,0.00019,2]
[419051452,1774812646839,-9871.5,0.00019,2]
[419051797,1774812724140,1000.0,0.00013699,2]
[419051883,1774813833698,-2173.11393559,0.0001232,2]
[419051884,1774813833710,-259.48742768,0.0001232,2]
[419051904,1774813838861,-2567.39863673,0.0001232,2]
[419051906,1774813838871,-5000.0,0.00012444,2]
[419051908,1774813838880,-1000.0,0.00013699,2]
[419051910,1774813838890,-189.93,0.000139,2]
[419051912,1774813838899,-2256.61,0.00015512,2]
[419051914,1774813838909,-10000.0,0.00015512,2]
[419051916,1774813838919,-2256.61,0.00016429,2]
[419051918,1774813838928,-2256.61,0.00016429,2]
[419051920,1774813838938,-184.0,0.0001643,2]
[419051922,1774813838948,-439.0,0.0001643,2]
[419051924,1774813838957,-522.22,0.000171,2]
[419051926,1774813838966,-50000.0,0.000171,2]
[419051928,1774813838975,-1771.00784563,0.00017225,2]
[419051930,1774813838985,-500.0,0.00017326,5]
[419051932,1774813838995,-2256.61,0.00017911,2]
[419051934,1774813839004,-1750.0,0.00018022,2]
[419051936,1774813839013,-2398.4119403,0.00018049,2]
[419051938,1774813839023,-1750.0,0.0001813,2]
[419051940,1774813839033,-1750.0,0.00018316,2]
[419051942,1774813839043,-1750.0,0.00018338,2]
[419051944,1774813839053,-500.0,0.00018373,2]
[419051946,1774813839063,-1750.0,0.00018405,2]
[419051948,1774813839072,-1750.0,0.00018439,2]
[419051950,1774813839082,-226.2278899,0.00018451,2]
[419051952,1774813839091,-266.27614428,0.00018451,2]
[419051954,1774813839101,-211.79611261,0.00018451,2]
[419051956,1774813839111,-262.58407112,0.00018451,2]
[419051958,1774813839120,-222.27752581,0.00018451,2]
[419051960,1774813839130,-242.54932966,0.00018451,2]
[419051962,1774813839140,-500.0,0.00018451,2]
[419051964,1774813839150,-500.0,0.00018451,2]
[419051966,1774813839159,-500.0,0.00018451,2]
[419051970,1774813839179,-500.0,0.00018451,2]
[419051972,1774813839190,-515.97189142,0.00018451,2]
[419051974,1774813839200,-1750.0,0.00018477,2]
[419051976,1774813839210,-1750.0,0.00018492,2]
[419051978,1774813839220,-2256.61,0.00018501,2]
[419051980,1774813839230,-1750.0,0.00018502,2]
[419051982,1774813839240,-190.10967189,0.00018525,2]
[419051984,1774813839251,-187.97896263,0.00018525,2]
[419051986,1774813839261,-500.0,0.00018525,2]
[419051988,1774813839271,-500.0,0.00018525,2]
[419051990,1774813839281,-500.0,0.00018525,2]
[419051993,1774813839291,-506.4882971,0.00018525,2]
[419051995,1774813839301,-178.51904819,0.00018525,2]
[419051997,1774813839311,-1750.0,0.00018565,2]
[419051999,1774813839321,-2487.15318209,0.00018597,2]
[419052001,1774813839331,-2256.61,0.00018598,2]
[419052003,1774813839341,-1750.0,0.00018626,2]
[419052005,1774813839350,-1771.00784558,0.00018679,2]
[419052007,1774813839360,-2510.08824562,0.000187,2]
[419052009,1774813839370,-1750.0,0.00018721,2]
[419052011,1774813839380,-1750.0,0.00018751,2]
[419052013,1774813839390,-1750.0,0.00018752,2]
[419052015,1774813839400,-1750.0,0.00018769,2]
[419052017,1774813839410,-2256.61,0.00018798,2]
[419052020,1774813839421,-324.8434484,0.00018816,2]
[419052022,1774813839431,-196.2113003,0.00018816,2]
[419052024,1774813839442,-324.7296694,0.00018816,2]
[419052026,1774813839451,-455.0679627,0.00018816,2]
[419052028,1774813839461,-196.2113003,0.00018816,2]
[419052029,1774813839471,-196.2113003,0.00018816,2]
[419052032,1774813839481,-196.2113003,0.00018816,2]
[419052034,1774813839491,-196.2113003,0.00018816,2]
[419052036,1774813839501,-454.3916205,0.00018816,2]
[419052038,1774813839510,-232.037579,0.00018831,2]
[419052040,1774813839521,-324.8606328,0.00018831,2]
[419052042,1774813839531,-196.2113003,0.00018831,2]
[419052044,1774813839542,-455.0679627,0.00018831,2]
[419052046,1774813839551,-196.2113003,0.00018831,2]
[419052048,1774813839561,-455.0679627,0.00018831,2]
[419052050,1774813839571,-455.0909562,0.00018831,2]
[419052052,1774813839581,-196.2208232,0.00018831,2]
[419052054,1774813839591,-454.8333834,0.00018831,2]
[419052056,1774813839600,-196.2113003,0.00018831,2]
[419052058,1774813839611,-196.2113003,0.00018831,2]
[419052060,1774813839621,-356.0,0.00018832,2]
[419052062,1774813839632,-1750.0,0.00018877,2]
[419052065,1774813839642,-151.0,0.000189,2]
[419052067,1774813839652,-151.0,0.000189,2]
[419052069,1774813839662,-151.0,0.000189,2]
[419052071,1774813839671,-151.0,0.000189,2]
[419052073,1774813839681,-151.0,0.000189,2]
[419052075,1774813839691,-151.0,0.000189,2]
[419052077,1774813839702,-151.0,0.000189,2]
[419052079,1774813839711,-151.0,0.000189,2]
[419052081,1774813839720,-151.0,0.000189,2]
[419052083,1774813839730,-151.0,0.000189,2]
[419052085,1774813839740,-2256.61,0.00018972,2]
[419052087,1774813839750,-500.0,0.00018973,2]
[419052089,1774813839760,-500.0,0.00018973,2]
[419052091,1774813839770,-570.14820796,0.00018973,2]
[419052093,1774813839780,-160.7610951,0.00018973,2]
[419052095,1774813839790,-500.0,0.00018973,2]
[419052097,1774813839801,-500.0,0.00018973,2]
[419052099,1774813839811,-2256.61,0.00018998,2]
[419052101,1774813839821,-2256.61,0.00018998,2]
[419052104,1774813839832,-5000.0,0.00018998,2]
[419052106,1774813839841,-2256.61,0.00018999,2]
[419052108,1774813839851,-2256.61,0.00018999,2]
[419052110,1774813839861,-2256.61,0.00018999,2]
[419052112,1774813839870,-2256.61,0.00018999,2]
[419052114,1774813839879,-2256.61,0.00018999,2]
[419052116,1774813839888,-2256.61,0.00018999,2]
[419052118,1774813839898,-2256.61,0.00018999,2]
[419052120,1774813839908,-2256.61,0.00018999,2]
[419052122,1774813839917,-2256.61,0.00018999,2]
[419052124,1774813839927,-2256.61,0.00018999,2]
[419052126,1774813839936,-2256.61,0.00018999,2]
[419052128,1774813839946,-2256.61,0.00018999,2]
[419052130,1774813839955,-2256.61,0.00018999,2]
[419052131,1774813839965,-2256.76587231,0.00018999,2]
[419052134,1774813839974,-559536.62347895,0.00019,2]
[419052136,1774813839985,-271.131774,0.00019,2]
[419052138,1774813839995,-271.131774,0.00019,2]
[419052140,1774813840004,-271.131774,0.00019,2]
[419052142,1774813840014,-271.131774,0.00019,2]
[419052143,1774813840024,-271.131774,0.00019,2]
[419052146,1774813840034,-271.131774,0.00019,2]
[419052148,1774813840043,-271.131774,0.00019,2]
[419052149,1774813840054,-271.131774,0.00019,2]
[419052151,1774813840064,-151.0,0.00019,2]
[419052153,1774813840074,-151.0,0.00019,2]
[419052156,1774813840084,-1750.0,0.00019028,2]
[419052158,1774813840094,-300.0,0.000191,2]
[419052160,1774813840104,-1750.0,0.00019108,2]
[419052162,1774813840114,-2579.17784983,0.00019145,2]
[419052164,1774813840124,-1750.0,0.00019157,2]
[419052166,1774813840134,-917.84831719,0.00019178,2]
[419052168,1774813840144,-271.131774,0.00019178,2]
[419052170,1774813840153,-271.131774,0.00019178,2]
[419052172,1774813840162,-271.131774,0.00019178,2]
[419052174,1774813840172,-271.131774,0.00019178,2]
[419052176,1774813840181,-237.7067,0.00019178,2]
[419052178,1774813840191,-200.0,0.00019178,2]
[419052180,1774813840200,-173.48,0.00019178,2]
[419052182,1774813840209,-271.805,0.00019178,2]
[419052184,1774813840219,-484.12,0.00019178,2]
[419052186,1774813840230,-427.5988,0.00019178,2]
[419052188,1774813840239,-373.3367,0.00019178,2]
[419052190,1774813840248,-200.0,0.00019178,2]
[419052192,1774813840258,-214.85,0.00019178,2]
[419052194,1774813840268,-1750.0,0.00019259,2]
[419052196,1774813840278,-1750.0,0.00019279,2]
[419052198,1774813840288,-151.0,0.000193,2]
[419052200,1774813840298,-600.0,0.00019351,2]
[419052202,1774813840308,-1750.0,0.00019365,2]
[419052204,1774813840318,-184.0,0.0001943,2]
[419052207,1774813840328,-1000.0,0.00019521,2]
[419052209,1774813840337,-1000.0,0.00019521,2]
[419052211,1774813840346,-1000.0,0.00019521,2]
[419052213,1774813840356,-250.0,0.00019521,2]
[419052215,1774813840365,-1000.0,0.00019521,2]
[419052217,1774813840375,-1750.0,0.00019576,2]
[419052219,1774813840384,-198.057,0.00019585,2]
[419052221,1774813840394,-151.0,0.000196,2]
[419052223,1774813840404,-1750.0,0.00019679,2]
[419052225,1774813840414,-287.26886461,0.00019693,2]
[419052227,1774813840423,-1750.0,0.00019749,2]
[419052229,1774813840433,-1477.978881,0.0001976,5]
[419052231,1774813840442,-1000.0,0.0001978,5]
[419052233,1774813840452,-150.16484766,0.000198,2]
[419052235,1774813840463,-1000.0,0.000198,5]
[419052237,1774813840473,-180.01980218,0.00019809,2]
[419052239,1774813840483,-1000.0,0.0001982,5]
[419052241,1774813840493,-1000.0,0.0001984,5]
[419052244,1774813840503,-212.0,0.00019855,2]
[419052246,1774813840513,-271.131774,0.0001986,2]
[419052248,1774813840523,-271.131774,0.0001986,2]
[419052250,1774813840533,-271.131774,0.0001986,2]
[419052252,1774813840544,-271.131774,0.0001986,2]
[419052254,1774813840553,-1000.0,0.0001986,5]
[419052255,1774813840562,-1000.0,0.0001988,5]
[419052256,1774813840572,-151.0,0.000199,2]
[419052257,1774813840582,-1000.0,0.000199,5]
[419052258,1774813840712,-1379.281406,0.0001992,5]
[419052259,1774813840722,-1000.0,0.0001992,5]
[419052260,1774813840732,-1000.0,0.0001994,5]
[419052261,1774813840742,-1000.0,0.0001994,5]
[419052262,1774813840751,-1000.0,0.0001996,5]
[419052263,1774813840760,-1000.0,0.0001996,5]
[419052264,1774813840769,-155.07599414,0.00019975,2]
[419052265,1774813840779,-1000.0,0.0001998,5]
[419052266,1774813840788,-1000.0,0.0001998,5]
[419052267,1774813840798,-258.46970978,0.0002,2]
[419052268,1774813840807,-1000.0,0.0002,5]
[419052269,1774813840817,-1000.0,0.0002,5]
[419052270,1774813840826,-793.30062957,0.0002,7]
[419052271,1774813840836,-500.0,0.00020038,2]
[419052272,1774813840845,-500.0,0.00020038,2]
[419052273,1774813840855,-500.0,0.00020038,2]
[419052274,1774813840865,-271.131774,0.00020068,2]
[419052275,1774813840875,-271.131774,0.00020068,2]
[419052276,1774813840885,-271.131774,0.00020068,2]
[419052277,1774813840895,-271.131773,0.00020068,2]
[419052278,1774813840905,-1500.0,0.00020068,2]
[419052280,1774813840915,-369.94980388,0.00020068,2]
[419052282,1774813840926,-704.81384246,0.00020068,2]
[419052284,1774813840935,-1500.0,0.00020068,2]
[419052286,1774813840945,-350.0,0.00020068,2]
[419052289,1774813840955,-1771.00784558,0.00020132,2]
[419052291,1774813840964,-500.0,0.0002014,2]
[419052293,1774813840975,-151.0,0.000202,3]
[419052295,1774813840984,-500.0,0.000202,2]
[419052296,1774813840994,-151.0,0.000204,4]
[419052298,1774813841003,-500.0,0.000205,2]
[419052300,1774813841013,-500.0,0.000205,2]
[419052302,1774813841022,-500.0,0.000205,2]
[419052305,1774813841032,-151.0,0.000205,4]
[419052306,1774813841043,-1000.0,0.00020585,2]
[419052308,1774813841052,-1000.0,0.00020585,2]
[419052310,1774813841061,-1000.0,0.00020585,2]
[419052312,1774813841071,-2000.0,0.00020616,2]
[419052315,1774813841081,-2000.0,0.00020616,2]
[419052317,1774813841090,-450.0,0.00020616,2]
[419052319,1774813841100,-505.25634317,0.00020688,2]
[419052321,1774813841109,-151.0,0.000207,3]
[419052323,1774813841120,-1000.0,0.00020748,2]
[419052324,1774813841129,-1003.77,0.000208,2]
[419052326,1774813841139,-151.0,0.000208,3]
[419052329,1774813841150,-212.0,0.00020855,2]
[419052331,1774813841159,-1992.0,0.000209,2]
[419052333,1774813841169,-151.0,0.000209,2]
[419052335,1774813841180,-204.0,0.000209,2]
[419052337,1774813841189,-177.0,0.000209,2]
[419052339,1774813841199,-468.0,0.00020913,10]
[419052341,1774813841209,-565.0,0.00020913,10]
[419052343,1774813841219,-555.0,0.00020913,10]
[419052345,1774813841229,-1733.0,0.00021,6]
[419052347,1774813841238,-553.58,0.00021,2]
[419052349,1774813841247,-1473.096055,0.00021,2]
[419052351,1774813841257,-151.0,0.00021,3]
[419052352,1774813841267,-151.0,0.00021,3]
[419052355,1774813841277,-1000.0,0.00021048,2]
[419052357,1774813841287,-1000.0,0.00021048,2]
[419052359,1774813841296,-250.0,0.00021048,2]
[419052361,1774813841308,-1000.0,0.00021048,2]
[419052363,1774813841318,-250.0,0.00021048,2]
[419052365,1774813841328,-160.0,0.000211,7]
[419052367,1774813841338,-151.0,0.00021133,2]
[419052369,1774813841347,-1500.0,0.00021133,2]
[419052371,1774813841356,-1152.96592533,0.00021133,2]
[419052373,1774813841366,-717.64181013,0.00021133,2]
[419052375,1774813841375,-7510.144711,0.00021164,2]
[419052377,1774813841384,-7510.144711,0.00021164,2]
[419052379,1774813841394,-7510.144711,0.00021164,2]
[419052381,1774813841403,-7510.144711,0.00021164,2]
[419052383,1774813841413,-2500.0,0.00021164,2]
[419052385,1774813841422,-2500.0,0.00021164,2]
[419052387,1774813841432,-550.0,0.00021164,2]
[419052389,1774813841442,-500.0,0.00021265,2]
[419052391,1774813841451,-720.0,0.00021286,10]
[419052393,1774813841461,-581.85919583,0.00021296,2]
[419052395,1774813841470,-151.0,0.000213,4]
[419052397,1774813841480,-151.0,0.000214,3]
[419052399,1774813841490,-1771.00784558,0.00021586,2]
[419052401,1774813841499,-1500.0,0.00021596,2]
[419052403,1774813841508,-1500.0,0.00021596,2]
[419052405,1774813841517,-407.26336269,0.00021596,2]
[419052407,1774813841526,-1500.0,0.00021596,2]
[419052409,1774813841535,-350.0,0.00021596,2]
[419052411,1774813841544,-1000.0,0.000216,5]
[419052413,1774813841554,-151.0,0.000216,4]
[419052415,1774813841563,-2000.0,0.00021681,2]
[419052417,1774813841572,-182.20345189,0.00021699,5]
[419052419,1774813841582,-151.0,0.000217,3]
[419052421,1774813841591,-3000.0,0.00021712,2]
[419052423,1774813841601,-3000.0,0.00021712,2]
[419052425,1774813841611,-452.63927015,0.00021712,2]
[419052427,1774813841620,-158.06,0.00021753,2]
[419052429,1774813841630,-500.0,0.00021844,2]
[419052431,1774813841639,-212.0,0.00021855,2]
[419052433,1774813841649,-1992.0,0.000219,2]
[419052435,1774813841659,-151.0,0.000219,2]
[419052437,1774813841668,-204.0,0.000219,2]
[419052439,1774813841677,-177.0,0.000219,2]
[419052441,1774813841687,-2490.42791871,0.000219,2]
[419052443,1774813841696,-151.0,0.00021918,2]
[419052445,1774813841707,-151.0,0.00021918,2]
[419052447,1774813841717,-151.0,0.00021918,2]
[419052449,1774813841726,-151.0,0.00021918,2]
[419052451,1774813841736,-151.0,0.00021918,2]
[419052453,1774813841746,-151.0,0.00021918,2]
[419052455,1774813841756,-151.0,0.00021918,2]
[419052457,1774813841766,-151.0,0.00021918,2]
[419052459,1774813841776,-151.0,0.00021918,2]
[419052461,1774813841786,-151.0,0.00021918,2]
[419052463,1774813841795,-151.0,0.00021918,2]
[419052465,1774813841805,-151.0,0.00021918,2]
[419052467,1774813841815,-151.0,0.00021918,2]
[419052469,1774813841824,-151.0,0.00021918,2]
[419052471,1774813841834,-151.0,0.00021918,2]
[419052473,1774813841844,-287.591728,0.00021918,2]
[419052475,1774813841854,-151.0,0.00021918,2]
[419052477,1774813841864,-165.342147,0.00021918,2]
[419052479,1774813841873,-245.417993,0.00021918,2]
[419052481,1774813841883,-245.417993,0.00021918,2]
[419052483,1774813841893,-245.417993,0.00021918,2]
[419052485,1774813841904,-245.417993,0.00021918,2]
[419052487,1774813841913,-245.417993,0.00021918,2]
[419052490,1774813841923,-245.417993,0.00021918,2]
[419052492,1774813841934,-245.417993,0.00021918,2]
[419052494,1774813841943,-245.417993,0.00021918,2]
[419052495,1774813841953,-245.417993,0.00021918,2]
[419052498,1774813841964,-245.417993,0.00021918,2]
[419052500,1774813841974,-245.417993,0.00021918,2]
[419052502,1774813841985,-245.417993,0.00021918,2]
[419052504,1774813841994,-245.417993,0.00021918,2]
[419052505,1774813842004,-245.417993,0.00021918,2]
[419052507,1774813842013,-245.417993,0.00021918,2]
[419052509,1774813842022,-245.417993,0.00021918,2]
[419052511,1774813842033,-245.417993,0.00021918,2]
[419052513,1774813842044,-245.417993,0.00021918,2]
[419052514,1774813842054,-245.417993,0.00021918,2]
[419052516,1774813842064,-245.417986,0.00021918,2]
[419052518,1774813842074,-151.0,0.00021918,2]
[419052520,1774813842084,-243.83676,0.00021918,2]
[419052522,1774813842094,-151.0,0.00021918,2]
[419052524,1774813842104,-151.0,0.00021918,2]
[419052527,1774813842115,-151.0,0.00021918,2]
[419052528,1774813842124,-151.0,0.00021918,2]
[419052530,1774813842134,-151.0,0.00021918,2]
[419052532,1774813842143,-151.0,0.00021918,2]
[419052534,1774813842153,-151.0,0.00021918,2]
[419052536,1774813842163,-151.0,0.00021918,2]
[419052538,1774813842173,-151.0,0.00021918,2]
[419052540,1774813842183,-171.595008,0.00021918,2]
[419052542,1774813842193,-388.312338,0.00021918,2]
[419052544,1774813842202,-388.312338,0.00021918,2]
[419052546,1774813842212,-388.312338,0.00021918,2]
[419052548,1774813842221,-388.312338,0.00021918,2]
[419052550,1774813842231,-388.312338,0.00021918,2]
[419052552,1774813842241,-388.312338,0.00021918,2]
[419052554,1774813842251,-388.312338,0.00021918,2]
[419052556,1774813842261,-388.312338,0.00021918,2]
[419052558,1774813842270,-388.312338,0.00021918,2]
[419052560,1774813842280,-388.312338,0.00021918,2]
[419052562,1774813842289,-388.312338,0.00021918,2]
[419052564,1774813842299,-388.312338,0.00021918,2]
[419052566,1774813842308,-388.312338,0.00021918,2]
[419052568,1774813842318,-388.312338,0.00021918,2]
[419052570,1774813842328,-388.312338,0.00021918,2]
[419052572,1774813842337,-388.312338,0.00021918,2]
[419052574,1774813842347,-388.312338,0.00021918,2]
[419052576,1774813842356,-388.312338,0.00021918,2]
[419052577,1774813842366,-388.312338,0.00021918,2]
[419052579,1774813842376,-388.31233,0.00021918,2]
[419052581,1774813842386,-264.492952,0.00021918,2]
[419052583,1774813842396,-151.0,0.00021918,2]
[419052585,1774813842406,-151.567771,0.00021918,2]
[419052587,1774813842415,-151.0,0.00021918,2]
[419052589,1774813842425,-151.0,0.00021918,2]
[419052591,1774813842435,-151.0,0.00021918,2]
[419052593,1774813842444,-151.0,0.00021918,2]
[419052595,1774813842454,-2828.618715,0.00021918,2]
[419052597,1774813842464,-2828.618715,0.00021918,2]
[419052599,1774813842474,-2828.618715,0.00021918,2]
[419052602,1774813842485,-2828.618715,0.00021918,2]
[419052604,1774813842495,-268.352448,0.00021918,2]
[419052606,1774813842504,-151.0,0.00021918,2]
[419052607,1774813842514,-739.314629,0.00021918,2]
[419052609,1774813842524,-151.0,0.00021918,2]
[419052611,1774813842533,-739.314629,0.00021918,2]
[419052613,1774813842543,-151.0,0.00021918,2]
[419052615,1774813842552,-739.314629,0.00021918,2]
[419052617,1774813842562,-237.555356,0.00021918,2]
[419052619,1774813842571,-739.314629,0.00021918,2]
[419052621,1774813842581,-673.133306,0.00021918,2]
[419052623,1774813842591,-673.133306,0.00021918,2]
[419052624,1774813842601,-673.133306,0.00021918,2]
[419052626,1774813842610,-673.133306,0.00021918,2]
[419052628,1774813842620,-1068.069932,0.00021918,2]
[419052630,1774813842630,-1068.069932,0.00021918,2]
[419052632,1774813842640,-1068.069932,0.00021918,2]
[419052634,1774813842650,-1068.069932,0.00021918,2]
[419052636,1774813842660,-151.0,0.00021918,2]
[419052638,1774813842670,-151.0,0.00021918,2]
[419052640,1774813842679,-151.0,0.00021918,2]
[419052642,1774813842689,-152.899213,0.00021918,2]
[419052644,1774813842699,-275.14635,0.00021918,2]
[419052646,1774813842709,-151.0,0.00021918,2]
[419052648,1774813842719,-151.0,0.00021918,2]
[419052650,1774813842729,-151.0,0.00021918,2]
[419052652,1774813842739,-151.0,0.00021918,2]
[419052654,1774813842750,-2678.951458,0.00021918,2]
[419052657,1774813842761,-173.149766,0.00021918,2]
[419052659,1774813842770,-2678.951458,0.00021918,2]
[419052660,1774813842780,-2678.951458,0.00021918,2]
[419052662,1774813842790,-2678.951458,0.00021918,2]
[419052673,1774813842883,-151.0,0.00021918,2]
[419052675,1774813842893,-151.0,0.00021918,2]
[419052677,1774813842903,-151.0,0.00021918,2]
[419052679,1774813842913,-151.0,0.00021918,2]
[419052680,1774813842923,-151.0,0.00021918,2]
[419052683,1774813842934,-4468.27232,0.00021918,2]
[419052684,1774813842943,-4468.27232,0.00021918,2]
[419052686,1774813842953,-4468.27232,0.00021918,2]
[419052688,1774813842963,-4468.27232,0.00021918,2]
[419052690,1774813842974,-554.719632,0.00021918,2]
[419052692,1774813842985,-554.719632,0.00021918,2]
[419052695,1774813842995,-554.719632,0.00021918,2]
[419052697,1774813843006,-212.255766,0.00021918,2]
[419052698,1774813843017,-212.255766,0.00021918,2]
[419052700,1774813843027,-212.255766,0.00021918,2]
[419052702,1774813843039,-212.255766,0.00021918,2]
[419052704,1774813843050,-554.719632,0.00021918,2]
[419052706,1774813843061,-656.259195,0.00021918,2]
[419052708,1774813843072,-656.259195,0.00021918,2]
[419052710,1774813843082,-656.259195,0.00021918,2]
[419052712,1774813843093,-656.259195,0.00021918,2]
[419052714,1774813843104,-170.750984,0.00021918,2]
[419052716,1774813843115,-170.750984,0.00021918,2]
[419052719,1774813843126,-170.750984,0.00021918,2]
[419052721,1774813843137,-170.750984,0.00021918,2]
[419052723,1774813843147,-151.0,0.00021918,2]
[419052725,1774813843157,-246.697086,0.00021918,2]
[419052727,1774813843167,-605.245498,0.00021918,2]
[419052729,1774813843178,-605.245498,0.00021918,2]
[419052731,1774813843188,-605.245498,0.00021918,2]
[419052733,1774813843198,-605.245498,0.00021918,2]
[419052735,1774813843208,-222.884288,0.00021918,2]
[419052737,1774813843218,-222.884288,0.00021918,2]
[419052739,1774813843229,-222.884288,0.00021918,2]
[419052741,1774813843239,-222.884288,0.00021918,2]
[419052743,1774813843250,-615.009273,0.00021918,2]
[419052745,1774813843259,-615.009273,0.00021918,2]
[419052747,1774813843269,-615.009273,0.00021918,2]
[419052749,1774813843278,-615.009273,0.00021918,2]
[419052751,1774813843288,-1612.936383,0.00021918,2]
[419052753,1774813843297,-1612.936383,0.00021918,2]
[419052755,1774813843307,-1612.936383,0.00021918,2]
[419052757,1774813843317,-151.0,0.00021918,2]
[419052759,1774813843326,-1612.936383,0.00021918,2]
[419052761,1774813843336,-151.0,0.00021918,2]
[419052763,1774813843346,-151.0,0.00021918,2]
[419052765,1774813843356,-151.0,0.00021918,2]
[419052767,1774813843366,-151.0,0.00021918,2]
[419052768,1774813843376,-1412.306439,0.00021918,2]
[419052770,1774813843385,-251.33142997,0.00021918,2]
[419052772,1774813843395,-204.863013,0.00021918,2]
[419052774,1774813843406,-204.863013,0.00021918,2]
[419052777,1774813843415,-204.863013,0.00021918,2]
[419052780,1774813843425,-204.863013,0.00021918,2]
[419052782,1774813843435,-204.863013,0.00021918,2]
[419052784,1774813843445,-204.863013,0.00021918,2]
[419052786,1774813843455,-204.863013,0.00021918,2]
[419052788,1774813843465,-204.863013,0.00021918,2]
[419052790,1774813843475,-204.863013,0.00021918,2]
[419052792,1774813843484,-204.863013,0.00021918,2]
[419052794,1774813843494,-204.863013,0.00021918,2]
[419052796,1774813843504,-204.863013,0.00021918,2]
[419052798,1774813843514,-151.0,0.00021918,2]
[419052800,1774813843524,-151.0,0.00021918,2]
[419052802,1774813843534,-151.0,0.00021918,2]
[419052804,1774813843545,-151.0,0.00021918,2]
[419052806,1774813843556,-151.0,0.00021918,2]
[419052808,1774813843566,-151.0,0.00021918,2]
[419052810,1774813843576,-189.234836,0.00021918,2]
[419052812,1774813843586,-2828.618715,0.00021918,2]
[419052814,1774813843596,-2828.618715,0.00021918,2]
[419052816,1774813843606,-2828.618715,0.00021918,2]
[419052818,1774813843616,-2828.618715,0.00021918,2]
[419052820,1774813843626,-151.0,0.00021918,2]
[419052822,1774813843635,-739.314629,0.00021918,2]
[419052824,1774813843645,-151.0,0.00021918,2]
[419052826,1774813843655,-739.314629,0.00021918,2]
[419052828,1774813843665,-151.0,0.00021918,2]
[419052830,1774813843674,-739.314629,0.00021918,2]
[419052831,1774813843683,-739.314629,0.00021918,2]
[419052832,1774813843694,-673.133306,0.00021918,2]
[419052834,1774813843703,-7510.144711,0.00021918,2]
[419052836,1774813843713,-673.133306,0.00021918,2]
[419052838,1774813843723,-7510.144711,0.00021918,2]
[419052840,1774813843733,-673.133306,0.00021918,2]
[419052842,1774813843743,-7510.144711,0.00021918,2]
[419052844,1774813843753,-673.133306,0.00021918,2]
[419052846,1774813843763,-7510.144711,0.00021918,2]
[419052848,1774813843772,-1068.069932,0.00021918,2]
[419052850,1774813843782,-1068.069932,0.00021918,2]
[419052852,1774813843791,-1068.069932,0.00021918,2]
[419052854,1774813843802,-1068.069932,0.00021918,2]
[419052856,1774813843811,-237.7067,0.00021918,3]
[419052858,1774813843821,-164.897539,0.00021918,2]
[419052860,1774813843831,-173.48,0.00021918,3]
[419052862,1774813843840,-151.0,0.00021918,2]
[419052864,1774813843849,-151.0,0.00021918,2]
[419052866,1774813843859,-151.0,0.00021918,2]
[419052868,1774813843868,-151.0,0.00021918,2]
[419052870,1774813843878,-151.0,0.00021918,2]
[419052872,1774813843887,-151.0,0.00021918,2]
[419052874,1774813843898,-271.805,0.00021918,3]
[419052876,1774813843908,-151.0,0.00021918,2]
[419052877,1774813843918,-2678.951458,0.00021918,2]
[419052879,1774813843928,-2678.951458,0.00021918,2]
[419052881,1774813843939,-2678.951458,0.00021918,2]